fUST/lending_fUST_20260117
["ID","MTS","AMOUNT","RATE_DAILY","PERIOD"]
[402244843,1768619438947,-500.0,0.00019178,3]
[402244844,1768619438956,-500.0,0.00019178,3]
[402244845,1768619438966,-500.0,0.00019178,3]
[402244846,1768619438975,-500.0,0.00019178,3]
[402244847,1768619438985,-375.19693951,0.00019178,3]
[402244848,1768619438995,-500.0,0.00019178,3]
[402244849,1768619439006,-500.0,0.00019178,3]
[402244850,1768619439016,-500.0,0.00019178,3]
[402244851,1768619439025,-1606.8,0.00019178,3]
[402244852,1768619439035,-628.01,0.00019178,3]
[402244853,1768619439045,-500.0,0.00019178,3]
[402244854,1768619439055,-500.0,0.00019178,3]
[402244855,1768619439065,-1177.63,0.00019178,3]
[402244856,1768619439074,-975.58796971,0.00019178,3]
[402244857,1768619439084,-884.72,0.00019178,3]
[402244858,1768619439095,-500.0,0.00019178,3]
[402244859,1768619439105,-500.0,0.00019178,3]
[402244860,1768619439115,-500.0,0.00019178,3]
[402244861,1768619439125,-500.0,0.00019178,3]
[402244862,1768619439135,-500.0,0.00019178,3]
[402244863,1768619439145,-500.0,0.00019178,3]
[402244864,1768619439155,-827.02,0.00019178,3]
[402244865,1768619439165,-504.12,0.00019178,3]
[402244866,1768619439174,-500.0,0.00019178,3]
[402244867,1768619439184,-643.48,0.00019178,3]
[402244868,1768619439193,-931.71,0.00019178,3]
[402244869,1768619439202,-620.7003348,0.00019178,3]
[402244870,1768619439211,-500.0,0.00019178,3]
[402244871,1768619439221,-500.0,0.00019178,3]
[402244873,1768619439230,-500.0,0.00019178,3]
[402244874,1768619439240,-500.0,0.00019178,3]
[402244875,1768619439250,-675.29,0.00019178,3]
[402244876,1768619439260,-500.0,0.00019178,3]
[402244877,1768619439269,-500.0,0.00019178,3]
[402244878,1768619439278,-500.0,0.00019178,3]
[402244879,1768619439289,-507.27,0.00019178,3]
[402244880,1768619439298,-500.0,0.00019178,3]
[402244881,1768619439308,-500.0,0.00019178,3]
[402244882,1768619439317,-500.0,0.00019178,3]
[402244883,1768619439327,-1469.91,0.00019178,3]
[402244884,1768619439336,-615.40537901,0.00019178,3]
[402244885,1768619439346,-502.70529972,0.00019178,3]
[402244886,1768619439355,-500.0,0.00019178,3]
[402244887,1768619439365,-500.0,0.00019178,3]
[402244888,1768619439374,-685.61,0.00019178,3]
[402244889,1768619439383,-500.0,0.00019178,3]
[402244890,1768619439392,-500.0,0.00019178,3]
[402244891,1768619439400,-500.0,0.00019178,3]
[402244892,1768619439410,-500.0,0.00019178,3]
[402244893,1768619439419,-500.0,0.00019178,3]
[402244894,1768619439428,-500.0,0.00019178,3]
[402244895,1768619439438,-500.0,0.00019178,3]
[402244896,1768619439447,-500.0,0.00019178,3]
[402244897,1768619439456,-500.0,0.00019178,3]
[402244898,1768619439465,-500.0,0.00019178,3]
[402244911,1768619439475,-500.0,0.00019178,3]
[402244915,1768619439811,-172.631544,0.00019178,3]
[402244917,1768619439821,-151.0,0.00019178,2]
[402244919,1768619439830,-500.0,0.00019178,3]
[402244921,1768619439839,-500.0,0.00019178,2]
[402244923,1768619439848,-500.0,0.00019178,3]
[402244925,1768619439858,-500.0,0.00019178,3]
[402244927,1768619439867,-158.856128,0.00019178,3]
[402244929,1768619439877,-1026.15,0.00019178,3]
[402244931,1768619439886,-1000.0,0.00019178,2]
[402244932,1768619439895,-500.0,0.00019178,3]
[402244934,1768619439904,-500.0,0.00019178,3]
[402244936,1768619439913,-1167.56,0.00019178,3]
[402244938,1768619439923,-529.90813819,0.00019178,3]
[402244940,1768619439932,-841.97,0.00019178,3]
[402244943,1768619439941,-500.0,0.00019178,3]
[402244944,1768619439950,-500.0,0.00019178,3]
[402244947,1768619439959,-1718.36,0.00019178,3]
[402244948,1768619439968,-539.26284362,0.00019178,3]
[402244951,1768619439977,-500.0,0.00019178,3]
[402244953,1768619439987,-500.0,0.00019178,3]
[402244954,1768619439996,-500.0,0.00019178,3]
[402244957,1768619440006,-537.24982539,0.00019178,3]
[402244959,1768619440015,-500.0,0.00019178,3]
[402244961,1768619440024,-502.61139783,0.00019178,3]
[402244963,1768619440034,-500.0,0.00019178,3]
[402244965,1768619440042,-500.0,0.00019178,3]
[402244967,1768619440051,-500.0,0.00019178,3]
[402244968,1768619440061,-500.0,0.00019178,3]
[402244971,1768619440071,-500.0,0.00019178,3]
[402244973,1768619440080,-836.52,0.00019178,3]
[402244974,1768619440089,-500.0,0.00019178,3]
[402244976,1768619440099,-568.77,0.00019178,3]
[402244978,1768619440108,-500.0,0.00019178,3]
[402244980,1768619440118,-500.0,0.00019178,3]
[402244983,1768619440127,-500.0,0.00019178,3]
[402244985,1768619440136,-1228.82,0.00019178,3]
[402244987,1768619440146,-745.52,0.00019178,3]
[402244989,1768619440156,-500.0,0.00019178,3]
[402244991,1768619440165,-500.0,0.00019178,3]
[402244993,1768619440175,-641.97,0.00019178,3]
[402244995,1768619440185,-612.73,0.00019178,3]
[402244997,1768619440194,-500.0,0.00019178,3]
[402244999,1768619440202,-519.23,0.00019178,3]
[402245001,1768619440211,-500.0,0.00019178,3]
[402245003,1768619440221,-789.14,0.00019178,3]
[402245005,1768619440229,-407.41540498,0.00019178,3]
[402245007,1768619440238,-1010.7,0.00019178,3]
[402245009,1768619440247,-500.0,0.00019178,3]
[402245011,1768619440257,-500.0,0.00019178,3]
[402245013,1768619440266,-500.0,0.00019178,3]
[402245015,1768619440276,-1021.35,0.00019178,3]
[402245017,1768619440285,-500.0,0.00019178,3]
[402245019,1768619440294,-500.0,0.00019178,3]
[402245021,1768619440303,-500.0,0.00019178,3]
[402245023,1768619440313,-888.63,0.00019178,3]
[402245025,1768619440323,-1487.55,0.00019178,3]
[402245027,1768619440332,-512.30237497,0.00019178,3]
[402245029,1768619440342,-539.37412899,0.00019178,3]
[402245031,1768619440351,-500.0,0.00019178,3]
[402245033,1768619440361,-500.0,0.00019178,3]
[402245035,1768619440370,-500.0,0.00019178,3]
[402245037,1768619440379,-500.0,0.00019178,3]
[402245039,1768619440388,-1143.96,0.00019178,3]
[402245041,1768619440398,-580.66,0.00019178,3]
[402245043,1768619440408,-500.0,0.00019178,3]
[402245045,1768619440417,-500.0,0.00019178,3]
[402245047,1768619440427,-573.22,0.00019178,3]
[402245049,1768619440436,-664.45,0.00019178,3]
[402245051,1768619440445,-500.0,0.00019178,3]
[402245053,1768619440455,-1259.71,0.00019178,3]
[402245055,1768619440464,-628.66,0.00019178,3]
[402245057,1768619440473,-500.0,0.00019178,3]
[402245059,1768619440483,-500.0,0.00019178,3]
[402245061,1768619440492,-608.27,0.00019178,3]
[402245064,1768619440505,-500.0,0.00019178,3]
[402245066,1768619440515,-679.4,0.00019178,3]
[402245068,1768619440525,-500.0,0.00019178,3]
[402245070,1768619440535,-500.0,0.00019178,3]
[402245072,1768619440544,-1501.74,0.00019178,3]
[402245074,1768619440554,-500.0,0.00019178,3]
[402245076,1768619440563,-500.0,0.00019178,3]
[402245078,1768619440575,-557.16501593,0.00019178,3]
[402245080,1768619440584,-500.0,0.00019178,3]
[402245082,1768619440595,-687.72,0.00019178,3]
[402245084,1768619440604,-938.1,0.00019178,3]
[402245086,1768619440614,-500.0,0.00019178,3]
[402245088,1768619440624,-546.84675493,0.00019178,3]
[402245090,1768619440633,-500.0,0.00019178,3]
[402245092,1768619440642,-165.19879319,0.00019178,3]
[402245094,1768619440652,-500.0,0.00019178,3]
[402245096,1768619440662,-500.0,0.00019178,3]
[402245098,1768619440671,-500.0,0.00019178,3]
[402245100,1768619440680,-500.0,0.00019178,3]
[402245102,1768619440690,-1202.36,0.00019178,3]
[402245104,1768619440699,-500.0,0.00019178,3]
[402245106,1768619440709,-500.0,0.00019178,3]
[402245108,1768619440718,-500.0,0.00019178,3]
[402245110,1768619440727,-524.02,0.00019178,3]
[402245112,1768619440737,-500.0,0.00019178,3]
[402245115,1768619440747,-506.16805049,0.00019178,2]
[402245117,1768619440756,-500.0,0.00019178,3]
[402245119,1768619440765,-500.0,0.00019178,3]
[402245121,1768619440774,-500.0,0.00019178,3]
[402245123,1768619440783,-500.0,0.00019178,3]
[402245125,1768619440792,-500.0,0.00019178,3]
[402245127,1768619440801,-500.0,0.00019178,3]
[402245129,1768619440810,-500.0,0.00019178,3]
[402245131,1768619440822,-566.08417387,0.00019178,3]
[402245133,1768619440831,-500.0,0.00019178,3]
[402245135,1768619440840,-500.0,0.00019178,3]
[402245137,1768619440850,-500.0,0.00019178,3]
[402245139,1768619440859,-500.0,0.00019178,3]
[402245141,1768619440868,-500.0,0.00019178,3]
[402245143,1768619440877,-500.0,0.00019178,3]
[402245145,1768619440886,-545.96,0.00019178,3]
[402245147,1768619440895,-508.80948568,0.00019178,3]
[402245149,1768619440904,-1194.19,0.00019178,3]
[402245151,1768619440913,-500.0,0.00019178,3]
[402245153,1768619440922,-500.0,0.00019178,3]
[402245155,1768619440931,-500.0,0.00019178,3]
[402245157,1768619440940,-500.0,0.00019178,3]
[402245159,1768619440948,-500.0,0.00019178,3]
[402245161,1768619440958,-500.0,0.00019178,3]
[402245163,1768619440967,-500.0,0.00019178,3]
[402245165,1768619440976,-500.0,0.00019178,3]
[402245167,1768619440985,-500.0,0.00019178,3]
[402245169,1768619440995,-512.26319681,0.00019178,3]
[402245171,1768619441004,-2026.27,0.00019178,3]
[402245173,1768619441015,-500.0,0.00019178,3]
[402245175,1768619441026,-500.0,0.00019178,3]
[402245177,1768619441036,-500.0,0.00019178,3]
[402245179,1768619441045,-500.0,0.00019178,3]
[402245181,1768619441056,-1492.01,0.00019178,3]
[402245183,1768619441066,-552.18,0.00019178,3]
[402245185,1768619441075,-500.22,0.00019178,3]
[402245187,1768619441085,-500.0,0.00019178,3]
[402245190,1768619441094,-569.62,0.00019178,3]
[402245192,1768619441104,-2079.09,0.00019178,3]
[402245194,1768619441114,-624.97,0.00019178,3]
[402245196,1768619441123,-510.39840049,0.00019178,3]
[402245198,1768619441132,-500.0,0.00019178,3]
[402245200,1768619441142,-500.0,0.00019178,3]
[402245202,1768619441153,-976.72,0.00019178,3]
[402245204,1768619441162,-1306.77,0.00019178,3]
[402245206,1768619441172,-500.0,0.00019178,3]
[402245208,1768619441181,-500.0,0.00019178,3]
[402245210,1768619441190,-500.0,0.00019178,3]
[402245212,1768619441200,-500.0,0.00019178,3]
[402245214,1768619441209,-500.0,0.00019178,3]
[402245216,1768619441218,-508.7492744,0.00019178,3]
[402245218,1768619441227,-500.0,0.00019178,3]
[402245220,1768619441237,-500.0,0.00019178,3]
[402245222,1768619441246,-151.0,0.00019178,2]
[402245224,1768619441255,-500.0,0.00019178,3]
[402245226,1768619441264,-500.0,0.00019178,3]
[402245228,1768619441274,-151.0,0.00019178,2]
[402245230,1768619441282,-500.0,0.00019178,3]
[402245232,1768619441293,-613.33,0.00019178,3]
[402245234,1768619441302,-500.0,0.00019178,3]
[402245236,1768619441311,-539.29487133,0.00019178,3]
[402245238,1768619441319,-500.0,0.00019178,3]
[402245240,1768619441328,-699.23,0.00019178,3]
[402245242,1768619441337,-500.0,0.00019178,3]
[402245244,1768619441347,-500.0,0.00019178,3]
[402245246,1768619441356,-805.73,0.00019178,3]
[402245248,1768619441366,-2379.93,0.00019178,3]
[402245250,1768619441375,-913.62,0.00019178,3]
[402245252,1768619441384,-1931.52,0.00019178,3]
[402245255,1768619441393,-500.0,0.00019178,3]
[402245258,1768619441414,-1057.76,0.00019178,3]
[402245260,1768619441424,-500.0,0.00019178,3]
[402245262,1768619441434,-1025.41,0.00019178,3]
[402245264,1768619441444,-500.0,0.00019178,3]
[402245266,1768619441454,-500.0,0.00019178,3]
[402245268,1768619441464,-500.0,0.00019178,3]
[402245270,1768619441474,-500.0,0.00019178,3]
[402245272,1768619441483,-500.0,0.00019178,3]
[402245275,1768619441494,-502.92,0.00019178,3]
[402245277,1768619441507,-500.0,0.00019178,3]
[402245279,1768619441518,-500.0,0.00019178,3]
[402245281,1768619441527,-500.0,0.00019178,3]
[402245283,1768619441537,-500.0,0.00019178,3]
[402245285,1768619441547,-500.0,0.00019178,3]
[402245287,1768619441556,-1336.73,0.00019178,3]
[402245289,1768619441565,-1063.36,0.00019178,3]
[402245291,1768619441575,-500.0,0.00019178,3]
[402245293,1768619441585,-1088.75,0.00019178,3]
[402245295,1768619441595,-500.0,0.00019178,3]
[402245297,1768619441605,-500.0,0.00019178,3]
[402245299,1768619441616,-535.27896173,0.00019178,3]
[402245301,1768619441626,-488.20495263,0.00019178,3]
[402245303,1768619441635,-500.0,0.00019178,3]
[402245305,1768619441645,-500.0,0.00019178,3]
[402245307,1768619441655,-500.0,0.00019178,3]
[402245309,1768619441664,-500.0,0.00019178,3]
[402245312,1768619441675,-577.86,0.00019178,3]
[402245314,1768619441685,-1720.39,0.00019178,3]
[402245316,1768619441695,-500.0,0.00019178,3]
[402245318,1768619441706,-1109.0,0.00019178,3]
[402245320,1768619441716,-1058.39,0.00019178,3]
[402245322,1768619441726,-845.08,0.00019178,3]
[402245324,1768619441736,-500.0,0.00019178,3]
[402245326,1768619441746,-500.0,0.00019178,3]
[402245328,1768619441756,-528.74,0.00019178,3]
[402245330,1768619441765,-1092.68,0.00019178,3]
[402245332,1768619441775,-1106.04,0.00019178,3]
[402245334,1768619441785,-1221.63,0.00019178,3]
[402245336,1768619441794,-500.0,0.00019178,3]
[402245338,1768619441804,-500.0,0.00019178,3]
[402245340,1768619441813,-500.0,0.00019178,3]
[402245342,1768619441824,-674.07,0.00019178,3]
[402245345,1768619441833,-500.0,0.00019178,3]
[402245347,1768619441843,-500.0,0.00019178,3]
[402245349,1768619441854,-500.0,0.00019178,3]
[402245351,1768619441864,-500.0,0.00019178,3]
[402245353,1768619441873,-500.0,0.00019178,3]
[402245355,1768619441883,-1691.36,0.00019178,2]
[402245357,1768619441892,-500.0,0.00019178,3]
[402245359,1768619441906,-1047.88,0.00019178,3]
[402245361,1768619441916,-1048.21,0.00019178,3]
[402245364,1768619441926,-500.0,0.00019178,3]
[402245366,1768619441936,-500.0,0.00019178,3]
[402245368,1768619441946,-612.74,0.00019178,3]
[402245369,1768619441956,-500.0,0.00019178,3]
[402245372,1768619441967,-500.0,0.00019178,3]
[402245374,1768619441977,-500.0,0.00019178,3]
[402245376,1768619441992,-500.0,0.00019178,3]
[402245378,1768619442002,-500.0,0.00019178,3]
[402245380,1768619442012,-845.68,0.00019178,2]
[402245383,1768619442023,-460.4,0.00019178,3]
[402245385,1768619442032,-666.48,0.00019178,3]
[402245387,1768619442042,-500.0,0.00019178,3]
[402245389,1768619442052,-539.45,0.00019178,3]
[402245391,1768619442061,-500.0,0.00019178,3]
[402245393,1768619442071,-1066.48,0.00019178,3]
[402245395,1768619442080,-2326.34,0.00019178,3]
[402245397,1768619442090,-500.0,0.00019178,3]
[402245399,1768619442100,-500.0,0.00019178,3]
[402245401,1768619442109,-500.0,0.00019178,3]
[402245403,1768619442119,-172.6105479,0.00019178,3]
[402245405,1768619442131,-500.0,0.00019178,3]
[402245425,1768619442289,-1504.26,0.00019178,3]
[402245427,1768619442298,-500.0,0.00019178,3]
[402245429,1768619442306,-984.65,0.00019178,3]
[402245430,1768619442315,-500.0,0.00019178,3]
[402245431,1768619442324,-500.0,0.00019178,3]
[402245432,1768619442332,-2029.03,0.00019178,3]
[402245433,1768619442341,-500.0,0.00019178,3]
[402245434,1768619442349,-1200.0,0.00019178,3]
[402245435,1768619442358,-500.0,0.00019178,3]
[402245436,1768619442370,-513.00114578,0.00019178,3]
[402245437,1768619442378,-500.0,0.00019178,3]
[402245438,1768619442387,-500.0,0.00019178,3]
[402245439,1768619442396,-614.31374356,0.00019178,3]
[402245440,1768619442404,-615.64,0.00019178,3]
[402245441,1768619442413,-696.06,0.00019178,3]
[402245442,1768619442421,-861.16,0.00019178,3]
[402245443,1768619442430,-500.0,0.00019178,3]
[402245444,1768619442439,-500.0,0.00019178,3]
[402245445,1768619442447,-1000.0,0.00019178,2]
[402245446,1768619442456,-500.0,0.00019178,3]
[402245447,1768619442465,-845.61,0.00019178,3]
[402245448,1768619442473,-500.0,0.00019178,3]
[402245449,1768619442482,-507.24,0.00019178,2]
[402245450,1768619442491,-500.0,0.00019178,3]
[402245451,1768619442506,-500.0,0.00019178,3]
[402245452,1768619442520,-323.34781817,0.00019178,3]
[402245453,1768619442529,-500.0,0.00019178,3]
[402245454,1768619442538,-500.0,0.00019178,3]
[402245455,1768619442547,-500.0,0.00019178,3]
[402245456,1768619442555,-500.0,0.00019178,3]
[402245457,1768619442564,-500.0,0.00019178,3]
[402245458,1768619442573,-515.09013638,0.00019178,3]
[402245460,1768619442582,-984.53,0.00019178,3]
[402245462,1768619442591,-500.0,0.00019178,3]
[402245464,1768619442600,-500.0,0.00019178,3]
[402245466,1768619442610,-500.0,0.00019178,3]
[402245468,1768619442619,-1514.49,0.00019178,2]
[402245469,1768619442628,-606.77,0.00019178,3]
[402245471,1768619442637,-500.0,0.00019178,3]
[402245473,1768619442647,-789.74,0.00019178,3]
[402245475,1768619442656,-500.0,0.00019178,3]
[402245477,1768619442666,-526.03,0.00019178,3]
[402245479,1768619442675,-500.0,0.00019178,3]
[402245481,1768619442684,-2167.53,0.00019178,3]
[402245483,1768619442693,-596.34,0.00019178,3]
[402245485,1768619442705,-500.0,0.00019178,3]
[402245487,1768619442714,-779.63,0.00019178,3]
[402245489,1768619442723,-500.0,0.00019178,3]
[402245492,1768619442734,-500.0,0.00019178,3]
[402245494,1768619442743,-500.0,0.00019178,3]
[402245496,1768619442752,-1500.0,0.00019178,2]
[402245498,1768619442761,-1854.07,0.00019178,3]
[402245500,1768619442771,-534.23061005,0.00019178,3]
[402245502,1768619442780,-500.0,0.00019178,3]
[402245504,1768619442789,-500.0,0.00019178,3]
[402245506,1768619442798,-500.0,0.00019178,3]
[402245508,1768619442807,-772.76,0.00019178,3]
[402245510,1768619442816,-555.92,0.00019178,3]
[402245512,1768619442825,-2537.0423,0.00019178,2]
[402245514,1768619442836,-509.29,0.00019178,3]
[402245516,1768619442845,-500.0,0.00019178,3]
[402245518,1768619442854,-500.0,0.00019178,3]
[402245520,1768619442863,-500.0,0.00019178,3]
[402245521,1768619442871,-500.0,0.00019178,3]
[402245523,1768619442881,-950.21,0.00019178,3]
[402245525,1768619442890,-500.0,0.00019178,3]
[402245528,1768619442899,-500.0,0.00019178,3]
[402245530,1768619442908,-500.0,0.00019178,3]
[402245532,1768619442917,-1045.68,0.00019178,2]
[402245534,1768619442926,-500.0,0.00019178,3]
[402245536,1768619442936,-963.56,0.00019178,3]
[402245537,1768619442945,-1264.08,0.00019178,3]
[402245540,1768619442955,-500.0,0.00019178,3]
[402245543,1768619442963,-500.0,0.00019178,3]
[402245546,1768619442972,-512.31691657,0.00019178,3]
[402245548,1768619442981,-1345.83,0.00019178,3]
[402245550,1768619442990,-500.0,0.00019178,3]
[402245552,1768619442999,-500.0,0.00019178,3]
[402245555,1768619443008,-500.0,0.00019178,3]
[402245558,1768619443017,-500.0,0.00019178,3]
[402245560,1768619443026,-500.0,0.00019178,3]
[402245562,1768619443035,-500.0,0.00019178,3]
[402245564,1768619443045,-500.0,0.00019178,3]
[402245566,1768619443054,-500.0,0.00019178,3]
[402245568,1768619443063,-1057.79,0.00019178,3]
[402245570,1768619443071,-500.0,0.00019178,3]
[402245572,1768619443081,-500.0,0.00019178,3]
[402245574,1768619443090,-500.0,0.00019178,3]
[402245576,1768619443099,-500.0,0.00019178,3]
[402245578,1768619443108,-500.0,0.00019178,3]
[402245580,1768619443117,-557.75392574,0.00019178,3]
[402245582,1768619443125,-1291.72,0.00019178,3]
[402245584,1768619443134,-500.0,0.00019178,3]
[402245586,1768619443143,-500.0,0.00019178,3]
[402245588,1768619443152,-500.0,0.00019178,3]
[402245590,1768619443162,-546.88319481,0.00019178,3]
[402245592,1768619443171,-500.0,0.00019178,3]
[402245594,1768619443180,-500.0,0.00019178,3]
[402245596,1768619443189,-1572.69,0.00019178,3]
[402245598,1768619443198,-500.0,0.00019178,3]
[402245600,1768619443206,-1263.46,0.00019178,3]
[402245602,1768619443215,-518.46662048,0.00019178,3]
[402245604,1768619443226,-500.0,0.00019178,3]
[402245606,1768619443237,-500.0,0.00019178,3]
[402245607,1768619443247,-887.22,0.00019178,3]
[402245609,1768619443257,-500.0,0.00019178,3]
[402245611,1768619443267,-1933.75,0.00019178,3]
[402245613,1768619443276,-500.0,0.00019178,3]
[402245615,1768619443285,-500.0,0.00019178,3]
[402245617,1768619443294,-849.18,0.00019178,3]
[402245619,1768619443303,-1663.78,0.00019178,3]
[402245621,1768619443312,-500.0,0.00019178,3]
[402245623,1768619443321,-553.86,0.00019178,3]
[402245625,1768619443330,-1209.01,0.00019178,3]
[402245627,1768619443339,-500.0,0.00019178,3]
[402245629,1768619443348,-500.0,0.00019178,3]
[402245631,1768619443357,-1479.53,0.00019178,3]
[402245634,1768619443373,-500.0,0.00019178,3]
[402245637,1768619443386,-500.0,0.00019178,3]
[402245638,1768619443395,-1583.41,0.00019178,3]
[402245640,1768619443405,-500.0,0.00019178,3]
[402245642,1768619443414,-500.0,0.00019178,3]
[402245644,1768619443425,-500.0,0.00019178,3]
[402245646,1768619443434,-1000.0,0.00019178,2]
[402245648,1768619443444,-861.64,0.00019178,3]
[402245650,1768619443454,-578.38164143,0.00019178,3]
[402245652,1768619443464,-500.0,0.00019178,3]
[402245654,1768619443474,-1040.26,0.00019178,3]
[402245656,1768619443483,-500.0,0.00019178,3]
[402245658,1768619443494,-276.48121689,0.00019178,3]
[402245660,1768619443508,-1641.05,0.00019178,3]
[402245663,1768619443519,-819.93,0.00019178,3]
[402245665,1768619443529,-500.0,0.00019178,3]
[402245667,1768619443539,-500.0,0.00019178,3]
[402245669,1768619443548,-500.0,0.00019178,3]
[402245671,1768619443558,-500.0,0.00019178,3]
[402245673,1768619443567,-995.04,0.00019178,3]
[402245675,1768619443578,-675.23,0.00019178,3]
[402245677,1768619443588,-742.32,0.00019178,3]
[402245679,1768619443597,-500.0,0.00019178,3]
[402245681,1768619443607,-500.0,0.00019178,3]
[402245683,1768619443616,-1587.55,0.00019178,3]
[402245685,1768619443625,-500.0,0.00019178,3]
[402245687,1768619443634,-500.0,0.00019178,3]
[402245689,1768619443644,-608.02,0.00019178,3]
[402245691,1768619443653,-500.0,0.00019178,3]
[402245693,1768619443662,-500.0,0.00019178,3]
[402245695,1768619443672,-768.32,0.00019178,3]
[402245697,1768619443681,-500.0,0.00019178,3]
[402245699,1768619443691,-500.0,0.00019178,3]
[402245701,1768619443700,-513.84,0.00019178,3]
[402245703,1768619443709,-500.0,0.00019178,3]
[402245705,1768619443719,-500.0,0.00019178,3]
[402245707,1768619443728,-500.0,0.00019178,3]
[402245709,1768619443738,-500.0,0.00019178,3]
[402245711,1768619443747,-556.65,0.00019178,3]
[402245713,1768619443757,-500.0,0.00019178,3]
[402245715,1768619443766,-500.0,0.00019178,3]
[402245717,1768619443775,-500.0,0.00019178,3]
[402245719,1768619443785,-500.0,0.00019178,3]
[402245721,1768619443794,-564.33,0.00019178,3]
[402245723,1768619443803,-731.29,0.00019178,3]
[402245725,1768619443813,-1623.12,0.00019178,3]
[402245727,1768619443821,-500.0,0.00019178,3]
[402245729,1768619443830,-500.0,0.00019178,3]
[402245731,1768619443840,-1015.47,0.00019178,3]
[402245733,1768619443851,-500.0,0.00019178,3]
[402245735,1768619443860,-523.99827377,0.00019178,3]
[402245737,1768619443870,-559.02,0.00019178,3]
[402245739,1768619443879,-633.87,0.00019178,3]
[402245741,1768619443888,-500.0,0.00019178,3]
[402245743,1768619443898,-1159.19,0.00019178,3]
[402245745,1768619443914,-183.46,0.00019178,2]
[402245747,1768619443923,-500.0,0.00019178,3]
[402245749,1768619443932,-1833.03,0.00019178,3]
[402245751,1768619443941,-500.0,0.00019178,3]
[402245753,1768619443951,-305.24535383,0.00019178,3]
[402245755,1768619443960,-189.36310647,0.00019178,3]
[402245757,1768619443969,-500.0,0.00019178,3]
[402245759,1768619443979,-636.14,0.00019178,3]
[402245761,1768619443988,-500.0,0.00019178,3]
[402245763,1768619443998,-645.74,0.00019178,3]
[402245765,1768619444007,-500.0,0.00019178,3]
[402245768,1768619444017,-500.0,0.00019178,3]
[402245770,1768619444026,-1361.98,0.00019178,3]
[402245772,1768619444036,-500.0,0.00019178,3]
[402245774,1768619444045,-500.0,0.00019178,3]
[402245776,1768619444055,-500.0,0.00019178,3]
[402245777,1768619444064,-1092.61,0.00019178,3]
[402245780,1768619444073,-500.0,0.00019178,3]
[402245782,1768619444083,-500.0,0.00019178,3]
[402245784,1768619444092,-616.93,0.00019178,3]
[402245786,1768619444103,-500.0,0.00019178,3]
[402245788,1768619444113,-504.57766204,0.00019178,3]
[402245790,1768619444122,-500.0,0.00019178,3]
[402245792,1768619444131,-694.87,0.00019178,3]
[402245794,1768619444140,-2100.18,0.00019178,3]
[402245796,1768619444149,-500.0,0.00019178,3]
[402245798,1768619444158,-500.0,0.00019178,3]
[402245800,1768619444167,-532.00867925,0.00019178,3]
[402245801,1768619444176,-2080.66,0.00019178,3]
[402245804,1768619444185,-1568.74,0.00019178,3]
[402245806,1768619444194,-513.94218979,0.00019178,3]